[Event "Late-Titled-Tuesday-Blitz-February-06-2024"]
[Site "Chess.com"]
[Date "2024.02.06"]
[Round "7"]
[White "Baronessa08"]
[Black "wild3000"]
[Result "1-0"]
[WhiteElo "2530"]
[BlackElo "2357"]
[TimeControl "180+1"]
[EndTime "15:17:33 PST"]
[Termination "Baronessa08 won on time"]

1. d4 {[%clk 0:03:00.9]} 1... Nf6 {[%clk 0:02:57.9]} 2. c4 {[%clk 0:03:00.6]}
2... e6 {[%clk 0:02:58]} 3. Nc3 {[%clk 0:03:00.1]} 3... Bb4 {[%clk 0:02:58.2]}
4. e3 {[%clk 0:03:00.2]} 4... O-O {[%clk 0:02:57.8]} 5. Bd3 {[%clk 0:03:00.2]}
5... c5 {[%clk 0:02:57.8]} 6. a3 {[%clk 0:02:55.4]} 6... Bxc3+ {[%clk
0:02:57.7]} 7. bxc3 {[%clk 0:02:56.3]} 7... d5 {[%clk 0:02:56.3]} 8. cxd5 {[%clk
0:02:53.4]} 8... exd5 {[%clk 0:02:55]} 9. Ne2 {[%clk 0:02:51.1]} 9... Nc6 {[%clk
0:02:44.5]} 10. O-O {[%clk 0:02:50.5]} 10... Re8 {[%clk 0:02:36.3]} 11. Ng3
{[%clk 0:02:49]} 11... Qc7 {[%clk 0:02:24.3]} 12. Ra2 {[%clk 0:02:45.5]} 12...
c4 {[%clk 0:02:11.6]} 13. Bb1 {[%clk 0:02:44.4]} 13... b5 {[%clk 0:02:12]} 14.
f3 {[%clk 0:02:43.6]} 14... a5 {[%clk 0:02:07.8]} 15. e4 {[%clk 0:02:42.4]}
15... Be6 {[%clk 0:01:50.1]} 16. e5 {[%clk 0:02:39.9]} 16... Nxe5 {[%clk
0:01:46.1]} 17. dxe5 {[%clk 0:02:38.9]} 17... Qxe5 {[%clk 0:01:47]} 18. f4
{[%clk 0:02:22.5]} 18... Qxc3 {[%clk 0:01:37.6]} 19. f5 {[%clk 0:02:20.8]} 19...
Bd7 {[%clk 0:01:36.4]} 20. Rd2 {[%clk 0:01:41.4]} 20... b4 {[%clk 0:01:27.1]}
21. axb4 {[%clk 0:01:36.1]} 21... axb4 {[%clk 0:01:26.6]} 22. Kh1 {[%clk
0:01:34.6]} 22... b3 {[%clk 0:01:22.5]} 23. Bb2 {[%clk 0:01:32.9]} 23... Qe3
{[%clk 0:01:17.3]} 24. Bxf6 {[%clk 0:01:32]} 24... gxf6 {[%clk 0:01:18.2]} 25.
Nh5 {[%clk 0:01:21.4]} 25... Ra6 {[%clk 0:01:04.4]} 26. Rxd5 {[%clk 0:01:07.7]}
26... Bc8 {[%clk 0:00:37.9]} 27. Rd8 {[%clk 0:00:54.3]} 27... Kf8 {[%clk
0:00:36.1]} 28. Rxe8+ {[%clk 0:00:48.9]} 28... Qxe8 {[%clk 0:00:35.7]} 29. Qg4
{[%clk 0:00:45.6]} 29... Qc6 {[%clk 0:00:18.7]} 30. Re1 {[%clk 0:00:42]} 30...
Be6 {[%clk 0:00:14.7]} 31. fxe6 {[%clk 0:00:41.1]} 31... fxe6 {[%clk 0:00:15.6]}
32. Bxh7 {[%clk 0:00:38.9]} 32... c3 {[%clk 0:00:14.7]} 33. Qg7+ {[%clk
0:00:37.3]} 33... Ke8 {[%clk 0:00:14.3]} 34. Nxf6+ {[%clk 0:00:37]} 34... Kd8
{[%clk 0:00:14]} 35. Be4 {[%clk 0:00:26.4]} 1-0

[Event "Late-Titled-Tuesday-Blitz-February-06-2024"]
[Site "Chess.com"]
[Date "2024.02.06"]
[Round "7"]
[White "matagordo"]
[Black "BozeKat"]
[Result "1-0"]
[WhiteElo "2230"]
[BlackElo "1999"]
[TimeControl "180+1"]
[EndTime "15:17:35 PST"]
[Termination "matagordo won on time"]

1. d4 {[%clk 0:02:19.2]} 1... d5 {[%clk 0:02:59.6]} 2. Bf4 {[%clk 0:02:19.2]}
2... Nf6 {[%clk 0:02:59.3]} 3. e3 {[%clk 0:02:19.9]} 3... c5 {[%clk 0:02:59.8]}
4. Nf3 {[%clk 0:02:20.3]} 4... Nc6 {[%clk 0:03:00.3]} 5. Nbd2 {[%clk 0:02:20.9]}
5... Qb6 {[%clk 0:03:00.7]} 6. dxc5 {[%clk 0:02:20.7]} 6... Qxb2 {[%clk
0:02:58.4]} 7. Rb1 {[%clk 0:02:21.3]} 7... Qa3 {[%clk 0:02:56.5]} 8. Bb5 {[%clk
0:02:21.3]} 8... Qxc5 {[%clk 0:02:48.6]} 9. O-O {[%clk 0:02:20.8]} 9... e6
{[%clk 0:02:42.5]} 10. c4 {[%clk 0:02:18.8]} 10... Be7 {[%clk 0:02:39.4]} 11.
Nb3 {[%clk 0:02:10.1]} 11... Qb6 {[%clk 0:02:34.2]} 12. Nbd4 {[%clk 0:02:05.5]}
12... Qc5 {[%clk 0:02:06.1]} 13. cxd5 {[%clk 0:01:46.7]} 13... Nxd5 {[%clk
0:02:01.4]} 14. Rc1 {[%clk 0:01:35.9]} 14... Qa3 {[%clk 0:00:37]} 15. Nxc6
{[%clk 0:01:27.7]} 15... Bd7 {[%clk 0:00:36.4]} 16. Nxe7 {[%clk 0:01:12.7]}
16... Bxb5 {[%clk 0:00:35]} 17. Nxd5 {[%clk 0:01:13]} 17... exd5 {[%clk
0:00:30]} 18. Re1 {[%clk 0:00:29.9]} 18... O-O {[%clk 0:00:28.3]} 19. Qxd5
{[%clk 0:00:28.5]} 19... Bc6 {[%clk 0:00:27.2]} 20. Qh5 {[%clk 0:00:28.2]} 20...
Qxa2 {[%clk 0:00:20.6]} 21. h3 {[%clk 0:00:13.2]} 21... a5 {[%clk 0:00:13.8]}
22. Ng5 {[%clk 0:00:13.5]} 22... h6 {[%clk 0:00:12.8]} 23. Nf3 {[%clk
0:00:13.9]} 23... Qe6 {[%clk 0:00:11]} 24. Nd4 {[%clk 0:00:13.1]} 24... Qe4
{[%clk 0:00:08.3]} 25. f3 {[%clk 0:00:08]} 25... Qg6 {[%clk 0:00:01.6]} 26. Qxg6
{[%clk 0:00:07.2]} 26... fxg6 {[%clk 0:00:02.5]} 27. Nxc6 {[%clk 0:00:07.4]}
27... bxc6 {[%clk 0:00:02.7]} 28. Rxc6 {[%clk 0:00:08.3]} 28... g5 {[%clk
0:00:02.5]} 29. Be5 {[%clk 0:00:05.4]} 29... Rfd8 {[%clk 0:00:01.3]} 30. Bd4
{[%clk 0:00:05.7]} 1-0

[Event "Late-Titled-Tuesday-Blitz-February-06-2024"]
[Site "Chess.com"]
[Date "2024.02.06"]
[Round "7"]
[White "GMKrikor"]
[Black "Zhigalko_Sergei"]
[Result "1-0"]
[WhiteElo "2847"]
[BlackElo "2939"]
[TimeControl "180+1"]
[EndTime "15:17:39 PST"]
[Termination "GMKrikor won on time"]

1. Nf3 {[%clk 0:02:43.5]} 1... d5 {[%clk 0:02:59.6]} 2. c4 {[%clk 0:02:43]} 2...
d4 {[%clk 0:02:59.6]} 3. b4 {[%clk 0:02:42.6]} 3... Bg4 {[%clk 0:02:59.2]} 4. g3
{[%clk 0:02:43.1]} 4... e6 {[%clk 0:02:46]} 5. Ne5 {[%clk 0:02:20.6]} 5... Bf5
{[%clk 0:02:43.9]} 6. Bg2 {[%clk 0:02:20.7]} 6... Nd7 {[%clk 0:02:30.7]} 7. Qa4
{[%clk 0:02:03.6]} 7... c6 {[%clk 0:02:24.1]} 8. Nxd7 {[%clk 0:01:53.7]} 8...
Qxd7 {[%clk 0:02:23.3]} 9. Bb2 {[%clk 0:01:45.3]} 9... Nf6 {[%clk 0:02:10.8]}
10. O-O {[%clk 0:01:41.7]} 10... Be7 {[%clk 0:00:42.3]} 11. d3 {[%clk
0:01:41.9]} 11... O-O {[%clk 0:00:39.7]} 12. Nd2 {[%clk 0:01:42.2]} 12... e5
{[%clk 0:00:32.3]} 13. Qb3 {[%clk 0:01:23.9]} 13... a5 {[%clk 0:00:28.5]} 14. a3
{[%clk 0:01:22.3]} 14... Rfe8 {[%clk 0:00:28.5]} 15. c5 {[%clk 0:01:14.6]} 15...
Be6 {[%clk 0:00:20.2]} 16. Nc4 {[%clk 0:01:14.8]} 16... Qc7 {[%clk 0:00:20.9]}
17. Qc2 {[%clk 0:01:03.1]} 17... axb4 {[%clk 0:00:18.5]} 18. axb4 {[%clk
0:01:04]} 18... Nd5 {[%clk 0:00:17.6]} 19. Qd2 {[%clk 0:00:51.8]} 19... h6
{[%clk 0:00:16.5]} 20. Rfb1 {[%clk 0:00:41.2]} 20... Rxa1 {[%clk 0:00:06.8]} 21.
Rxa1 {[%clk 0:00:41.1]} 21... b5 {[%clk 0:00:07.5]} 22. cxb6 {[%clk 0:00:36]}
22... Nxb6 {[%clk 0:00:05.4]} 23. Na5 {[%clk 0:00:36.6]} 23... Bd5 {[%clk
0:00:03.2]} 24. Rc1 {[%clk 0:00:35.4]} 24... Bxg2 {[%clk 0:00:02.6]} 25. Kxg2
{[%clk 0:00:36.3]} 25... c5 {[%clk 0:00:01.8]} 26. bxc5 {[%clk 0:00:33.5]} 26...
Na4 {[%clk 0:00:01]} 27. Ba3 {[%clk 0:00:31]} 27... Bxc5 {[%clk 0:00:01.3]} 28.
Bxc5 {[%clk 0:00:30]} 28... Nxc5 {[%clk 0:00:02.2]} 29. Kg1 {[%clk 0:00:21.5]}
29... Qb6 {[%clk 0:00:02.7]} 30. Nc4 {[%clk 0:00:21.2]} 30... Qe6 {[%clk
0:00:02.6]} 31. Qb4 {[%clk 0:00:18.4]} 31... Nd7 {[%clk 0:00:02.5]} 32. Nd6
{[%clk 0:00:18.3]} 1-0

[Event "Late-Titled-Tuesday-Blitz-February-06-2024"]
[Site "Chess.com"]
[Date "2024.02.06"]
[Round "7"]
[White "JaackCamel"]
[Black "Schattman"]
[Result "0-1"]
[WhiteElo "2200"]
[BlackElo "2384"]
[TimeControl "180+1"]
[EndTime "15:17:40 PST"]
[Termination "Schattman won by resignation"]

1. d4 {[%clk 0:02:27.4]} 1... d5 {[%clk 0:02:57.2]} 2. c4 {[%clk 0:02:24.7]}
2... c6 {[%clk 0:02:57.6]} 3. cxd5 {[%clk 0:02:24.3]} 3... cxd5 {[%clk
0:02:58.5]} 4. Bf4 {[%clk 0:02:24.2]} 4... Nf6 {[%clk 0:02:58.2]} 5. e3 {[%clk
0:02:24.2]} 5... Nc6 {[%clk 0:02:58.2]} 6. Nc3 {[%clk 0:02:23.6]} 6... Bf5
{[%clk 0:02:55.9]} 7. Bd3 {[%clk 0:02:17.9]} 7... Bxd3 {[%clk 0:02:54.6]} 8.
Qxd3 {[%clk 0:02:17.8]} 8... e6 {[%clk 0:02:54.8]} 9. h3 {[%clk 0:02:16]} 9...
Rc8 {[%clk 0:02:51.3]} 10. Nf3 {[%clk 0:02:14.9]} 10... Bb4 {[%clk 0:02:46.7]}
11. O-O {[%clk 0:02:14.1]} 11... Qa5 {[%clk 0:02:46.1]} 12. Rfc1 {[%clk
0:02:04.5]} 12... O-O {[%clk 0:02:44.4]} 13. Ne5 {[%clk 0:01:57.9]} 13... Bxc3
{[%clk 0:02:38.7]} 14. bxc3 {[%clk 0:01:56.2]} 14... Nxe5 {[%clk 0:02:27.9]} 15.
Bxe5 {[%clk 0:01:53.4]} 15... Ne4 {[%clk 0:02:25]} 16. c4 {[%clk 0:01:49.7]}
16... Qa6 {[%clk 0:02:04.7]} 17. Qb1 {[%clk 0:01:12.3]} 17... Nd2 {[%clk
0:01:53.6]} 18. Qb5 {[%clk 0:01:12.2]} 18... Nxc4 {[%clk 0:01:50.6]} 19. Qxa6
{[%clk 0:01:12.1]} 19... bxa6 {[%clk 0:01:50.2]} 20. Bg3 {[%clk 0:00:59.3]}
20... Rc6 {[%clk 0:01:38.8]} 21. Rab1 {[%clk 0:00:52.3]} 21... Rb6 {[%clk
0:01:38.8]} 22. Rb3 {[%clk 0:00:48.5]} 22... Rc8 {[%clk 0:01:25.4]} 23. Rcb1
{[%clk 0:00:41.7]} 23... Kf8 {[%clk 0:01:24.8]} 24. a4 {[%clk 0:00:35.9]} 24...
Rcc6 {[%clk 0:01:13.1]} 25. Kh2 {[%clk 0:00:29.9]} 25... Ke8 {[%clk 0:01:12.5]}
26. Bf4 {[%clk 0:00:21.6]} 26... Kd7 {[%clk 0:01:11.9]} 27. Kg3 {[%clk
0:00:21.2]} 27... f6 {[%clk 0:01:07.5]} 28. Rb4 {[%clk 0:00:20.6]} 28... a5
{[%clk 0:00:51.5]} 29. Rb5 {[%clk 0:00:19.6]} 29... a6 {[%clk 0:00:47.4]} 30.
Rxb6 {[%clk 0:00:19.2]} 30... Rxb6 {[%clk 0:00:47.3]} 31. Rxb6 {[%clk
0:00:18.2]} 31... Nxb6 {[%clk 0:00:46.7]} 32. Kf3 {[%clk 0:00:17.5]} 32... Nxa4
{[%clk 0:00:46]} 33. Ke2 {[%clk 0:00:18.2]} 33... Nc3+ {[%clk 0:00:44.1]} 34.
Kd3 {[%clk 0:00:18.4]} 34... Ne4 {[%clk 0:00:44.2]} 35. f3 {[%clk 0:00:18]}
35... Nd6 {[%clk 0:00:43.8]} 36. Kc3 {[%clk 0:00:17.3]} 36... Nc4 {[%clk
0:00:41.4]} 37. e4 {[%clk 0:00:16.6]} 37... Kc6 {[%clk 0:00:41.1]} 38. Bc1
{[%clk 0:00:14.4]} 38... Kb5 {[%clk 0:00:40.4]} 39. exd5 {[%clk 0:00:14.4]}
39... exd5 {[%clk 0:00:40.2]} 40. h4 {[%clk 0:00:13]} 40... g6 {[%clk
0:00:39.5]} 41. Kb3 {[%clk 0:00:12.7]} 41... f5 {[%clk 0:00:38.8]} 42. g4 {[%clk
0:00:12.4]} 42... fxg4 {[%clk 0:00:37.5]} 43. fxg4 {[%clk 0:00:12.4]} 43... h5
{[%clk 0:00:37.6]} 44. gxh5 {[%clk 0:00:11.4]} 44... gxh5 {[%clk 0:00:37.8]} 45.
Bg5 {[%clk 0:00:08.6]} 45... a4+ {[%clk 0:00:37.2]} 46. Kc3 {[%clk 0:00:09]}
46... a3 {[%clk 0:00:37.5]} 47. Bc1 {[%clk 0:00:08.3]} 47... a2 {[%clk
0:00:36.5]} 48. Bb2 {[%clk 0:00:08.1]} 48... Nxb2 {[%clk 0:00:35.4]} 0-1

[Event "Late-Titled-Tuesday-Blitz-February-06-2024"]
[Site "Chess.com"]
[Date "2024.02.06"]
[Round "7"]
[White "Mazetovic"]
[Black "KaydenTroffChess"]
[Result "0-1"]
[WhiteElo "2615"]
[BlackElo "2850"]
[TimeControl "180+1"]
[EndTime "15:17:41 PST"]
[Termination "KaydenTroffChess won by resignation"]

1. e4 {[%clk 0:02:58.5]} 1... c5 {[%clk 0:03:00]} 2. Nf3 {[%clk 0:02:58.5]} 2...
g6 {[%clk 0:02:56.2]} 3. c3 {[%clk 0:02:58.3]} 3... Bg7 {[%clk 0:02:56.2]} 4. d4
{[%clk 0:02:58.2]} 4... cxd4 {[%clk 0:02:57.1]} 5. cxd4 {[%clk 0:02:58.7]} 5...
d5 {[%clk 0:02:57.5]} 6. e5 {[%clk 0:02:59.1]} 6... Nc6 {[%clk 0:02:53.9]} 7.
Bb5 {[%clk 0:02:58.3]} 7... Nh6 {[%clk 0:02:53.1]} 8. h3 {[%clk 0:02:54.9]} 8...
O-O {[%clk 0:02:53.2]} 9. O-O {[%clk 0:02:52.8]} 9... f6 {[%clk 0:02:53.5]} 10.
exf6 {[%clk 0:02:51]} 10... Rxf6 {[%clk 0:02:52.9]} 11. Bxc6 {[%clk 0:02:50.9]}
11... bxc6 {[%clk 0:02:52.3]} 12. Re1 {[%clk 0:02:46.4]} 12... Rb8 {[%clk
0:02:34.9]} 13. b3 {[%clk 0:02:45]} 13... c5 {[%clk 0:02:30.1]} 14. Bg5 {[%clk
0:02:36.3]} 14... Rf7 {[%clk 0:02:06]} 15. Nc3 {[%clk 0:02:34.8]} 15... Nf5
{[%clk 0:02:03.4]} 16. Ne5 {[%clk 0:01:55.2]} 16... cxd4 {[%clk 0:01:59]} 17.
Nxf7 {[%clk 0:01:54.5]} 17... Kxf7 {[%clk 0:01:59.9]} 18. Na4 {[%clk 0:01:46.2]}
18... Qd6 {[%clk 0:01:38.3]} 19. g4 {[%clk 0:01:43.3]} 19... h6 {[%clk
0:01:38.2]} 20. Bd2 {[%clk 0:00:49.3]} 20... Nh4 {[%clk 0:01:37.6]} 21. Rc1
{[%clk 0:00:45.3]} 21... e5 {[%clk 0:01:26.4]} 22. Nc5 {[%clk 0:00:40.6]} 22...
e4 {[%clk 0:01:24.5]} 23. Nxe4 {[%clk 0:00:39.9]} 23... dxe4 {[%clk 0:01:22.3]}
24. Rxe4 {[%clk 0:00:40]} 24... Bb7 {[%clk 0:01:16.2]} 25. Bf4 {[%clk
0:00:39.9]} 25... Qd5 {[%clk 0:01:16.2]} 26. f3 {[%clk 0:00:32]} 26... Rc8
{[%clk 0:00:46.5]} 27. Rxc8 {[%clk 0:00:30.8]} 27... Bxc8 {[%clk 0:00:47.4]} 28.
Bg3 {[%clk 0:00:30.9]} 28... g5 {[%clk 0:00:42.2]} 29. Bxh4 {[%clk 0:00:21.4]}
29... gxh4 {[%clk 0:00:43.1]} 30. Qd3 {[%clk 0:00:21.7]} 30... Qd6 {[%clk
0:00:40.5]} 31. f4 {[%clk 0:00:17.2]} 31... Bb7 {[%clk 0:00:40.5]} 32. Re2
{[%clk 0:00:14.8]} 32... Qd5 {[%clk 0:00:36.2]} 33. Kf2 {[%clk 0:00:14.6]} 33...
Bf8 {[%clk 0:00:31.4]} 34. Qh7+ {[%clk 0:00:13.9]} 34... Bg7 {[%clk 0:00:31]}
35. Qd3 {[%clk 0:00:14]} 35... Qg2+ {[%clk 0:00:27.6]} 36. Ke1 {[%clk
0:00:14.1]} 36... Qg3+ {[%clk 0:00:28.3]} 37. Kd2 {[%clk 0:00:13.2]} 37... Qxf4+
{[%clk 0:00:27.9]} 38. Kc2 {[%clk 0:00:13.5]} 38... Bd5 {[%clk 0:00:20.8]} 39.
Kb2 {[%clk 0:00:13.1]} 39... Qf3 {[%clk 0:00:19.6]} 40. Qb5 {[%clk 0:00:12.3]}
40... d3+ {[%clk 0:00:19.4]} 41. Ka3 {[%clk 0:00:10.9]} 41... dxe2 {[%clk
0:00:18.9]} 42. Qd7+ {[%clk 0:00:11]} 42... Kg8 {[%clk 0:00:19.5]} 43. Qe8+
{[%clk 0:00:10.8]} 43... Bf8+ {[%clk 0:00:20]} 0-1

[Event "Late-Titled-Tuesday-Blitz-February-06-2024"]
[Site "Chess.com"]
[Date "2024.02.06"]
[Round "7"]
[White "Arystanner"]
[Black "Jospem"]
[Result "0-1"]
[WhiteElo "2860"]
[BlackElo "3042"]
[TimeControl "180+1"]
[EndTime "15:17:46 PST"]
[Termination "Jospem won by resignation"]

1. e4 {[%clk 0:03:00.9]} 1... e5 {[%clk 0:02:57.2]} 2. Nf3 {[%clk 0:03:01.3]}
2... Nc6 {[%clk 0:02:58]} 3. Bb5 {[%clk 0:03:01.4]} 3... a6 {[%clk 0:02:58.2]}
4. Ba4 {[%clk 0:03:01.7]} 4... Nf6 {[%clk 0:02:58.6]} 5. O-O {[%clk 0:03:01.6]}
5... Be7 {[%clk 0:02:59.3]} 6. d3 {[%clk 0:03:01.3]} 6... d6 {[%clk 0:02:58.4]}
7. c3 {[%clk 0:03:01.7]} 7... O-O {[%clk 0:02:58.8]} 8. Re1 {[%clk 0:02:59.6]}
8... Re8 {[%clk 0:02:58.3]} 9. Bb3 {[%clk 0:02:58.9]} 9... Bf8 {[%clk
0:02:54.9]} 10. Bg5 {[%clk 0:02:57.4]} 10... h6 {[%clk 0:02:52.9]} 11. Bh4
{[%clk 0:02:57.9]} 11... g6 {[%clk 0:02:50.9]} 12. Nbd2 {[%clk 0:02:57.9]} 12...
Bg7 {[%clk 0:02:51.3]} 13. Nc4 {[%clk 0:02:57]} 13... Be6 {[%clk 0:02:41.9]} 14.
Ne3 {[%clk 0:02:57.6]} 14... Qd7 {[%clk 0:02:38.2]} 15. c4 {[%clk 0:02:56.6]}
15... Nh7 {[%clk 0:02:25.5]} 16. Nd5 {[%clk 0:02:45.4]} 16... f5 {[%clk
0:02:25.4]} 17. exf5 {[%clk 0:02:43.2]} 17... gxf5 {[%clk 0:02:24.5]} 18. Rc1
{[%clk 0:02:32.1]} 18... Qf7 {[%clk 0:02:23.3]} 19. Qd2 {[%clk 0:02:14.8]} 19...
Kh8 {[%clk 0:02:21.9]} 20. Nb4 {[%clk 0:02:07.7]} 20... Nxb4 {[%clk 0:02:14.2]}
21. Qxb4 {[%clk 0:02:07.9]} 21... c5 {[%clk 0:02:15.1]} 22. Qb6 {[%clk
0:02:04.5]} 22... Qd7 {[%clk 0:02:02.8]} 23. Qa5 {[%clk 0:02:04.5]} 23... Reb8
{[%clk 0:01:58.8]} 24. Qb6 {[%clk 0:01:57.7]} 24... Nf8 {[%clk 0:01:48]} 25. Bc2
{[%clk 0:01:40.9]} 25... Ng6 {[%clk 0:01:28.8]} 26. b4 {[%clk 0:01:36.4]} 26...
cxb4 {[%clk 0:01:12.2]} 27. Qxb4 {[%clk 0:01:36.5]} 27... b6 {[%clk 0:01:03.7]}
28. Ba4 {[%clk 0:01:13.9]} 28... b5 {[%clk 0:00:50.2]} 29. cxb5 {[%clk
0:01:13.2]} 29... axb5 {[%clk 0:00:51.1]} 30. Bb3 {[%clk 0:01:13.9]} 30... Bxb3
{[%clk 0:00:50.9]} 31. Qxb3 {[%clk 0:01:14]} 31... Rc8 {[%clk 0:00:46.8]} 32.
Qd5 {[%clk 0:01:01.2]} 32... Nf4 {[%clk 0:00:37.1]} 33. Rxc8+ {[%clk 0:00:58]}
33... Rxc8 {[%clk 0:00:38]} 34. Qb3 {[%clk 0:00:57.9]} 34... Ng6 {[%clk
0:00:35.7]} 35. h3 {[%clk 0:00:54.1]} 35... f4 {[%clk 0:00:33.3]} 36. Qd5 {[%clk
0:00:42.7]} 36... Qc6 {[%clk 0:00:33.6]} 37. Qe6 {[%clk 0:00:40.1]} 37... d5
{[%clk 0:00:33.7]} 38. Qxc6 {[%clk 0:00:20.4]} 38... Rxc6 {[%clk 0:00:34.6]} 39.
Bd8 {[%clk 0:00:21]} 39... Rc3 {[%clk 0:00:34.7]} 40. Rb1 {[%clk 0:00:18.5]}
40... Rxd3 {[%clk 0:00:33.8]} 41. Rxb5 {[%clk 0:00:18.8]} 41... e4 {[%clk
0:00:34.2]} 42. Ne1 {[%clk 0:00:18.8]} 42... Rd1 {[%clk 0:00:34.1]} 43. Kf1
{[%clk 0:00:19]} 43... d4 {[%clk 0:00:27.4]} 44. Ke2 {[%clk 0:00:14.5]} 44...
Ra1 {[%clk 0:00:27.3]} 0-1

[Event "Late-Titled-Tuesday-Blitz-February-06-2024"]
[Site "Chess.com"]
[Date "2024.02.06"]
[Round "7"]
[White "malakismayil"]
[Black "Mackster23"]
[Result "0-1"]
[WhiteElo "2484"]
[BlackElo "2750"]
[TimeControl "180+1"]
[EndTime "15:17:48 PST"]
[Termination "Mackster23 won on time"]

1. e4 {[%clk 0:03:00.9]} 1... c5 {[%clk 0:02:58.2]} 2. Nf3 {[%clk 0:03:01]} 2...
d6 {[%clk 0:02:57]} 3. Bb5+ {[%clk 0:03:01.1]} 3... Nd7 {[%clk 0:02:56.6]} 4.
O-O {[%clk 0:02:59.2]} 4... a6 {[%clk 0:02:56.1]} 5. Bxd7+ {[%clk 0:02:58.6]}
5... Bxd7 {[%clk 0:02:57]} 6. c3 {[%clk 0:02:59.1]} 6... Nf6 {[%clk 0:02:51.9]}
7. Re1 {[%clk 0:02:58.6]} 7... e6 {[%clk 0:02:45.1]} 8. d4 {[%clk 0:02:52.8]}
8... cxd4 {[%clk 0:02:45.5]} 9. Qxd4 {[%clk 0:02:52.6]} 9... Be7 {[%clk
0:02:37.5]} 10. Bg5 {[%clk 0:02:52.4]} 10... Bc6 {[%clk 0:02:29.9]} 11. Nbd2
{[%clk 0:02:52.1]} 11... h6 {[%clk 0:02:28.5]} 12. Bh4 {[%clk 0:02:48.8]} 12...
O-O {[%clk 0:02:28.9]} 13. Rad1 {[%clk 0:02:45.7]} 13... Qa5 {[%clk 0:02:25.3]}
14. a3 {[%clk 0:02:31.1]} 14... Rfd8 {[%clk 0:02:17.1]} 15. h3 {[%clk
0:02:05.3]} 15... Qh5 {[%clk 0:02:10.3]} 16. Qe3 {[%clk 0:01:48.3]} 16... b5
{[%clk 0:01:48.6]} 17. Bg3 {[%clk 0:00:50.5]} 17... Rac8 {[%clk 0:01:30.3]} 18.
Nd4 {[%clk 0:00:47.4]} 18... Bb7 {[%clk 0:01:28.4]} 19. f3 {[%clk 0:00:43.6]}
19... Nd7 {[%clk 0:01:25.9]} 20. N2b3 {[%clk 0:00:43.2]} 20... Nb6 {[%clk
0:01:11.5]} 21. Na5 {[%clk 0:00:42.1]} 21... Nc4 {[%clk 0:01:08.8]} 22. Nxc4
{[%clk 0:00:41.6]} 22... Rxc4 {[%clk 0:01:09.7]} 23. Ne2 {[%clk 0:00:40.3]}
23... d5 {[%clk 0:00:54.5]} 24. exd5 {[%clk 0:00:14.3]} 24... Bc5 {[%clk
0:00:54]} 25. Nd4 {[%clk 0:00:14.6]} 25... Qxd5 {[%clk 0:00:52.9]} 26. Bf2
{[%clk 0:00:10.5]} 26... Bb6 {[%clk 0:00:42.6]} 27. Kh1 {[%clk 0:00:06.8]} 27...
Qh5 {[%clk 0:00:35.9]} 28. Qe2 {[%clk 0:00:06.6]} 28... Bc7 {[%clk 0:00:30.7]}
29. Nc2 {[%clk 0:00:05.6]} 29... Rxd1 {[%clk 0:00:18.6]} 30. Rxd1 {[%clk
0:00:06.5]} 30... Bc6 {[%clk 0:00:13.1]} 31. Qe1 {[%clk 0:00:06.8]} 31... Bxf3
{[%clk 0:00:09.3]} 32. Kg1 {[%clk 0:00:03.2]} 32... Rg4 {[%clk 0:00:06.4]} 33.
Bg3 {[%clk 0:00:01.8]} 33... Rxg3 {[%clk 0:00:05]} 0-1

[Event "Late-Titled-Tuesday-Blitz-February-06-2024"]
[Site "Chess.com"]
[Date "2024.02.06"]
[Round "7"]
[White "ChessSwole"]
[Black "koncheto"]
[Result "1-0"]
[WhiteElo "2667"]
[BlackElo "2502"]
[TimeControl "180+1"]
[EndTime "15:17:49 PST"]
[Termination "ChessSwole won by resignation"]

1. e4 {[%clk 0:03:00.9]} 1... d5 {[%clk 0:02:36.2]} 2. exd5 {[%clk 0:03:01.8]}
2... Qxd5 {[%clk 0:02:32.9]} 3. Nc3 {[%clk 0:03:01.6]} 3... Qa5 {[%clk
0:02:33.5]} 4. d4 {[%clk 0:03:00.8]} 4... c6 {[%clk 0:02:33.4]} 5. Nf3 {[%clk
0:02:59.5]} 5... Nf6 {[%clk 0:02:34]} 6. Bc4 {[%clk 0:02:59.1]} 6... Bf5 {[%clk
0:02:34.6]} 7. O-O {[%clk 0:02:58.8]} 7... e6 {[%clk 0:02:34.9]} 8. Bd2 {[%clk
0:02:59.2]} 8... Qc7 {[%clk 0:02:34.5]} 9. Re1 {[%clk 0:02:57.7]} 9... Bd6
{[%clk 0:02:34.8]} 10. h3 {[%clk 0:02:57.1]} 10... O-O {[%clk 0:02:35.1]} 11. a4
{[%clk 0:02:50.7]} 11... a6 {[%clk 0:02:32.1]} 12. Bb3 {[%clk 0:02:42.2]} 12...
Nbd7 {[%clk 0:02:32]} 13. a5 {[%clk 0:02:40.6]} 13... Rad8 {[%clk 0:02:28.3]}
14. Qe2 {[%clk 0:02:39.8]} 14... c5 {[%clk 0:02:24.7]} 15. Na4 {[%clk
0:02:27.6]} 15... Rfe8 {[%clk 0:02:13.8]} 16. Rad1 {[%clk 0:02:19.1]} 16... Be4
{[%clk 0:01:57.5]} 17. dxc5 {[%clk 0:02:10.9]} 17... Nxc5 {[%clk 0:01:55.5]} 18.
Nxc5 {[%clk 0:02:11.1]} 18... Bxc5 {[%clk 0:01:56.1]} 19. Bc3 {[%clk 0:02:09.4]}
19... Rxd1 {[%clk 0:01:30.5]} 20. Rxd1 {[%clk 0:02:08.8]} 20... Qf4 {[%clk
0:01:14.7]} 21. Ne1 {[%clk 0:01:34.9]} 21... Nd5 {[%clk 0:01:00.7]} 22. Bd4
{[%clk 0:01:20.8]} 22... Bxd4 {[%clk 0:00:24.5]} 23. Rxd4 {[%clk 0:01:20.2]}
23... f5 {[%clk 0:00:25.4]} 24. Nd3 {[%clk 0:00:42.5]} 24... Qg5 {[%clk
0:00:08.9]} 25. f3 {[%clk 0:00:23.4]} 25... Bxd3 {[%clk 0:00:09.1]} 26. Qxd3
{[%clk 0:00:17.4]} 26... Nf4 {[%clk 0:00:09]} 27. Qd2 {[%clk 0:00:14.8]} 27...
Nxh3+ {[%clk 0:00:05.1]} 28. Kh2 {[%clk 0:00:15.4]} 28... Qxd2 {[%clk
0:00:02.4]} 29. Rxd2 {[%clk 0:00:16.3]} 29... Nf4 {[%clk 0:00:02.3]} 30. Rd7
{[%clk 0:00:16.8]} 30... Rb8 {[%clk 0:00:01.1]} 31. g3 {[%clk 0:00:16.7]} 31...
Ng6 {[%clk 0:00:01.5]} 32. Bxe6+ {[%clk 0:00:16.6]} 32... Kh8 {[%clk 0:00:02.1]}
33. Bxf5 {[%clk 0:00:16.7]} 33... Nf8 {[%clk 0:00:02.8]} 34. Rc7 {[%clk
0:00:16.7]} 34... b6 {[%clk 0:00:03.1]} 35. axb6 {[%clk 0:00:16.4]} 35... Rxb6
{[%clk 0:00:04]} 36. Rc8 {[%clk 0:00:16.7]} 36... Kg8 {[%clk 0:00:04.5]} 37. Bd3
{[%clk 0:00:16.1]} 37... g6 {[%clk 0:00:04.4]} 38. b3 {[%clk 0:00:15.5]} 38...
Kg7 {[%clk 0:00:04.1]} 39. Ra8 {[%clk 0:00:15.6]} 39... Nd7 {[%clk 0:00:02.9]}
40. Rxa6 {[%clk 0:00:15.9]} 40... Rb8 {[%clk 0:00:03.2]} 41. Ra7 {[%clk
0:00:15.9]} 41... Rb7 {[%clk 0:00:03.6]} 42. Rxb7 {[%clk 0:00:16.1]} 1-0